bitfinex/quotes_BTCUSD_20241206
["timestamp","ask_amount","ask_price","bid_price","bid_amount"]
[1733514828579,0.17552951,101790.0,101780.0,0.39577022]
[1733514828965,0.17752951,101790.0,101780.0,0.39577022]
[1733514829399,0.18052951,101790.0,101780.0,0.39577022]
[1733514829615,0.0805,101790.0,101780.0,0.39577022]
[1733514831925,0.18052951,101790.0,101780.0,0.39577022]
[1733514832342,0.18052951,101790.0,101780.0,0.40063398]
[1733514833772,0.23025753,101790.0,101780.0,0.40063398]
[1733514834007,0.22902951,101790.0,101780.0,0.18318389]
[1733514834224,0.129,101790.0,101780.0,0.40096099]
[1733514834682,0.129,101790.0,101780.0,0.66229351]
[1733514835116,0.129,101790.0,101780.0,0.40096099]
[1733514835348,0.129,101790.0,101780.0,0.66229351]
[1733514835762,0.23025758,101790.0,101780.0,0.66229351]
[1733514836006,0.11907404,101790.0,101780.0,0.44451641]
[1733514836444,0.11907404,101790.0,101780.0,0.44454679]
[1733514836875,0.11907404,101790.0,101780.0,0.44454798]
[1733514837506,0.11994304,101790.0,101780.0,0.44454798]
[1733514838155,0.005869,101790.0,101780.0,0.44454927]
[1733514838368,0.005869,101790.0,101780.0,0.56910622]
[1733514839475,0.003869,101790.0,101780.0,0.56910622]
[1733514839686,0.000869,101790.0,101780.0,0.56910622]
[1733514839943,0.000869,101790.0,101780.0,0.57010622]
[1733514841000,0.000869,101790.0,101780.0,0.570013]
[1733514843109,0.000869,101790.0,101780.0,0.67004251]
[1733514844200,0.000869,101790.0,101780.0,0.5113305]
[1733514844871,0.000869,101790.0,101780.0,0.61663325]
[1733514845307,0.000869,101790.0,101780.0,0.35533226]
[1733514845520,0.000869,101790.0,101780.0,0.61657108]
[1733514845950,0.000869,101790.0,101780.0,0.35533226]
[1733514847881,0.000869,101790.0,101780.0,0.27713226]
[1733514849229,0.000869,101790.0,101780.0,0.66281944]
[1733514849438,0.000869,101790.0,101780.0,0.66750625]
[1733514849664,0.000869,101790.0,101780.0,0.56747674]
[1733514851469,0.000869,101790.0,101780.0,0.18178956]
[1733514851893,0.124369,101790.0,101780.0,0.17884055]
[1733514852104,0.124369,101790.0,101780.0,0.29033658]
[1733514853606,0.124369,101790.0,101780.0,0.44033658]
[1733514853821,0.124369,101790.0,101780.0,0.17884055]
[1733514854032,0.124369,101790.0,101780.0,0.44033658]
[1733514855210,0.124369,101790.0,101780.0,0.29033658]
[1733514856518,0.124369,101790.0,101780.0,0.44033658]
[1733514856734,0.22562656,101790.0,101780.0,0.39686597]
[1733514856938,0.22439851,101790.0,101780.0,0.39686597]
[1733514857161,0.124369,101790.0,101780.0,0.39686597]
[1733514858045,0.124369,101790.0,101780.0,0.658362]
[1733514858739,0.124369,101790.0,101780.0,0.44033658]
[1733514858950,0.124369,101790.0,101780.0,0.65823073]
[1733514859164,0.124369,101790.0,101780.0,0.44033658]
[1733514862347,0.124369,101790.0,101780.0,0.21792989]
[1733514862612,0.124369,101790.0,101780.0,0.36792989]
[1733514863239,0.22562653,101790.0,101780.0,0.36792989]
[1733514863459,0.22439851,101790.0,101780.0,0.36792989]
[1733514864976,0.22439851,101790.0,101780.0,0.40145177]
[1733514867424,0.22439851,101790.0,101780.0,0.25145177]
[1733514867868,0.22439851,101790.0,101780.0,0.03352188]
[1733514868115,0.22439851,101790.0,101780.0,0.25180849]
[1733514868341,0.22439851,101790.0,101780.0,0.21828661]
[1733514868793,0.0827,101780.0,101770.0,0.21828661]
[1733514869015,0.0827,101780.0,101760.0,0.25271039]
[1733514869016,0.0827,101770.0,101760.0,0.25271039]
[1733514869224,0.23325788,101770.0,101760.0,0.25271039]
[1733514869475,0.23202951,101770.0,101760.0,0.25271039]
[1733514870309,0.23202951,101770.0,101760.0,0.40271039]
[1733514870526,0.23202951,101770.0,101760.0,0.18442378]
[1733514870945,0.23502951,101770.0,101760.0,0.40271039]
[1733514871960,0.23702951,101770.0,101760.0,0.40271039]
[1733514873991,0.23702951,101770.0,101760.0,0.40444859]
[1733514877325,0.23702951,101770.0,101760.0,0.18616198]
[1733514877537,0.23702951,101770.0,101760.0,0.03616198]
[1733514877749,0.28702951,101770.0,101760.0,0.03616198]
[1733514877973,0.23702951,101770.0,101760.0,0.03616198]
[1733514878391,0.28702951,101770.0,101760.0,0.03616198]
[1733514879510,0.23702951,101770.0,101760.0,0.03616198]
[1733514879742,0.34373246,101770.0,101760.0,0.00191085]
[1733514879951,0.31002951,101770.0,101760.0,0.00191085]
[1733514880168,0.26002951,101770.0,101760.0,0.00191085]
[1733514880401,0.1,101750.0,101740.0,0.0017362]
[1733514880622,0.29975837,101750.0,101740.0,0.0017362]
[1733514880902,0.29852951,101750.0,101740.0,0.0017362]
[1733514881324,0.24852951,101750.0,101740.0,0.0017362]
[1733514882012,0.25352951,101750.0,101740.0,0.0027362]
[1733514882456,0.25752951,101750.0,101740.0,0.0027362]
[1733514882686,0.30752951,101750.0,101740.0,0.0027362]
[1733514882909,0.25752951,101750.0,101740.0,0.0027362]
[1733514883101,0.33452951,101750.0,101740.0,0.0027362]
[1733514883301,0.28452951,101750.0,101740.0,0.0027362]
[1733514883729,0.30752951,101750.0,101740.0,0.0027362]
[1733514883936,0.25752951,101750.0,101740.0,0.0027362]
[1733514884145,0.28328246,101750.0,101740.0,0.0027362]
[1733514884363,0.25752951,101750.0,101740.0,0.0027362]
[1733514884806,0.25752951,101750.0,101690.0,0.34758661]
[1733514884807,0.0965,101720.0,101690.0,0.21743147]
[1733514885039,0.0763,101690.0,101670.0,0.0017372]
[1733514885259,0.17632951,101690.0,101670.0,0.0017372]
[1733514885476,0.17632951,101690.0,101670.0,0.03503719]
[1733514886215,0.17644241,101690.0,101670.0,0.03503719]
[1733514887174,0.17767173,101690.0,101670.0,0.03503719]
[1733514887398,0.17767173,101690.0,101670.0,0.03703719]
[1733514887868,0.17767173,101690.0,101670.0,0.03803719]
[1733514891693,0.17644241,101690.0,101670.0,0.18803719]
[1733514892148,0.0001129,101690.0,101670.0,0.18803719]
[1733514892390,0.0001129,101690.0,101670.0,0.2880667]
[1733514892599,0.0001129,101690.0,101680.0,0.2305]
[1733514893449,0.0011129,101690.0,101680.0,0.2305]
[1733514893679,0.0001129,101690.0,101680.0,0.2305]
[1733514894139,0.0001129,101690.0,101680.0,0.33052951]
[1733514894572,0.0011129,101690.0,101680.0,0.33652951]
[1733514894786,0.0011129,101690.0,101680.0,0.33952951]
[1733514894991,0.0011129,101690.0,101680.0,0.36252951]
[1733514895435,0.0011129,101690.0,101680.0,4.56470451]
[1733514895657,0.0011129,101690.0,101680.0,0.41252951]
[1733514895860,0.0001129,101690.0,101680.0,0.40652951]
[1733514896128,0.0001129,101690.0,101680.0,2.55252951]
[1733514896331,0.0001129,101690.0,101680.0,2.77689912]
[1733514896332,0.0011129,101690.0,101680.0,2.77689912]
[1733514896536,0.0011129,101690.0,101680.0,2.76889912]
[1733514896772,0.0021129,101690.0,101680.0,2.76717304]
[1733514896984,0.0021129,101690.0,101680.0,2.82217304]
[1733514897429,0.0021129,101690.0,101680.0,2.82391244]
[1733514897656,0.0021129,101690.0,101680.0,2.81891244]
[1733514897890,0.0021129,101690.0,101680.0,2.82391244]
[1733514898119,0.0021129,101690.0,101680.0,1.07891244]
[1733514898566,0.0021129,101690.0,101680.0,1.02891244]
[1733514898798,0.0021129,101690.0,101680.0,1.07891244]
[1733514901190,0.0021129,101690.0,101680.0,1.01691244]
[1733514901401,0.0021129,101690.0,101680.0,0.85691244]
[1733514902463,0.0021129,101690.0,101680.0,0.23136586]
[1733514902669,0.0021129,101690.0,101680.0,0.0147394]
[1733514904845,0.00334214,101690.0,101680.0,0.0147394]
[1733514905086,0.0021129,101690.0,101680.0,0.0147394]
[1733514905703,0.0807,101730.0,101690.0,0.15]
[1733514905953,0.0807,101730.0,101710.0,0.15]
[1733514906402,0.18072951,101730.0,101710.0,0.36667621]
[1733514906604,0.18195833,101730.0,101710.0,0.36667621]
[1733514906800,0.18195833,101730.0,101710.0,0.15]
[1733514907430,0.18195833,101730.0,101710.0,0.36767621]
[1733514907888,0.1711697,101750.0,101710.0,0.36867621]
[1733514908096,0.10125821,101740.0,101710.0,0.36867621]
[1733514908948,0.10125821,101740.0,101710.0,0.36767621]
[1733514909365,0.10125821,101740.0,101710.0,0.40249489]
[1733514909606,0.079,101730.0,101710.0,0.39949489]
[1733514909838,0.18025839,101730.0,101710.0,0.18381868]
[1733514910054,0.00122888,101720.0,101710.0,0.18381868]
[1733514910270,0.10125839,101720.0,101710.0,0.03281868]
[1733514910707,0.10125839,101720.0,101690.0,0.47631974]
[1733514911356,0.10125839,101720.0,101690.0,0.21667621]
[1733514911713,0.10002951,101710.0,101690.0,0.47631974]
[1733514911914,0.2284585,101710.0,101690.0,0.21667621]
[1733514912326,0.2284585,101710.0,101680.0,0.51277625]
[1733514912535,0.2284585,101710.0,101680.0,0.25313272]
[1733514912976,0.2284585,101710.0,101680.0,0.25362763]
[1733514913181,0.0811,101700.0,101680.0,0.25362763]
[1733514913385,0.18112951,101700.0,101690.0,0.154]
[1733514913947,0.18112951,101700.0,101690.0,0.15]
[1733514914397,0.18112951,101700.0,101680.0,0.18645651]
[1733514914761,0.10002951,101690.0,101680.0,0.18645651]
[1733514915426,0.10125881,101690.0,101680.0,0.18645651]
[1733514916529,0.0012293,101690.0,101680.0,0.40362763]
[1733514916777,0.0833293,101700.0,101680.0,0.40362763]
[1733514916970,0.18335881,101700.0,101680.0,0.40362763]
[1733514917375,0.18235881,101700.0,101680.0,0.40362763]
[1733514917814,0.18235881,101700.0,101680.0,0.40378581]
[1733514918678,0.17809881,101700.0,101680.0,0.40378581]
[1733514919132,0.17809881,101700.0,101680.0,0.18645651]
[1733514919381,0.17809881,101700.0,101680.0,0.03645651]
[1733514920011,0.17809881,101700.0,101690.0,0.15]
[1733514921149,0.17909881,101700.0,101690.0,0.15]
[1733514921589,0.17909881,101700.0,101680.0,0.1547945]
[1733514921834,0.17909881,101700.0,101670.0,0.04098222]
[1733514921835,0.2765589,101690.0,101670.0,0.04098222]
[1733514922118,0.075,101680.0,101670.0,0.0017372]
[1733514922341,0.17502951,101680.0,101670.0,0.0017372]
[1733514922559,0.17502951,101680.0,101670.0,0.00607156]
[1733514924531,0.17625905,101680.0,101670.0,0.00580077]
[1733514925386,0.20703364,101680.0,101670.0,0.00580077]
[1733514925590,0.2058041,101680.0,101670.0,0.00580077]
[1733514926241,0.2128041,101680.0,101670.0,0.00680077]
[1733514926914,0.2628041,101680.0,101670.0,0.00780077]
[1733514927118,0.3615041,101680.0,101670.0,0.00780077]
[1733514927322,0.3615041,101680.0,101670.0,0.00680077]
[1733514927530,0.3645041,101680.0,101670.0,0.00680077]
[1733514927738,0.33372951,101680.0,101670.0,0.00680077]
[1733514928160,0.3645041,101680.0,101670.0,0.00680077]
[1733514928622,0.31293433,101680.0,101670.0,0.00680077]
[1733514929952,0.30293433,101680.0,101670.0,0.00580077]
[1733514930388,0.30893433,101680.0,101670.0,0.00780077]
[1733514930851,0.2835041,101680.0,101670.0,0.00780077]
[1733514931502,0.32972951,101680.0,101670.0,0.00780077]
[1733514932333,0.27972951,101680.0,101670.0,0.00780077]
[1733514932565,0.27972951,101680.0,101670.0,0.00580077]
[1733514932566,0.22372951,101680.0,101670.0,0.00580077]
[1733514932778,0.27372951,101680.0,101670.0,0.00580077]
[1733514932986,0.28572951,101680.0,101670.0,0.00680077]
[1733514933218,0.33572951,101680.0,101670.0,0.00680077]
[1733514933415,0.33172951,101680.0,101670.0,0.00680077]
[1733514933867,0.33572951,101680.0,101670.0,0.00680077]
[1733514935530,0.30872951,101680.0,101670.0,0.00680077]
[1733514936025,0.25872951,101680.0,101670.0,0.00680077]
[1733514936953,0.28751217,101680.0,101670.0,0.00680077]
[1733514937639,0.43751217,101680.0,101670.0,0.00680077]
[1733514938652,0.40872951,101680.0,101670.0,0.00680077]
[1733514938885,0.68711949,101680.0,101670.0,0.00680077]
[1733514939855,0.70211949,101680.0,101670.0,0.00680077]
[1733514941748,0.74294599,101680.0,101670.0,0.00680077]
[1733514942730,0.66125101,101680.0,101670.0,0.00680077]
[1733514943205,0.45255601,101680.0,101670.0,0.00580077]
[1733514943444,0.65825101,101680.0,101670.0,0.00680077]
[1733514943662,0.66525101,101680.0,101670.0,0.00780077]
[1733514944315,0.46855601,101680.0,101670.0,0.00780077]
[1733514944746,0.56837135,101680.0,101670.0,0.00780077]
[1733514945186,0.46855601,101680.0,101670.0,0.00780077]
[1733514945603,0.66525101,101680.0,101670.0,0.00780077]
[1733514946673,0.1547,101670.0,101660.0,0.01290732]
[1733514946881,0.3013221,101670.0,101660.0,0.01290732]
[1733514947099,0.30009212,101670.0,101660.0,0.01290732]
[1733514948397,0.39072378,101670.0,101660.0,0.01290732]
[1733514948617,0.30009212,101670.0,101660.0,0.01290732]
[1733514948829,0.30909212,101670.0,101660.0,0.01390732]
[1733514949030,0.45909212,101670.0,101660.0,0.01390732]
[1733514949943,0.46509212,101670.0,101660.0,0.01390732]
[1733514954901,0.1,101650.0,101620.0,0.07177238]
[1733514955021,0.1,101650.0,101620.0,0.0398586]
[1733514955022,0.10125956,101640.0,101620.0,0.0398586]
[1733514955229,0.10125956,101640.0,101610.0,0.1986368]
[1733514955690,0.10125956,101640.0,101620.0,0.045]
[1733514955691,0.10002951,101640.0,101620.0,0.045]
[1733514956093,0.10002951,101640.0,101620.0,0.046]
[1733514956307,0.10002951,101640.0,101620.0,0.04617281]
[1733514956513,0.10002951,101640.0,101620.0,0.04517281]
[1733514957025,0.10002951,101640.0,101620.0,0.04617281]
[1733514957427,0.10002951,101640.0,101620.0,0.04817281]
[1733514958016,0.10002951,101640.0,101620.0,0.12797281]
[1733514959629,0.10002951,101640.0,101630.0,0.15]
[1733514960592,0.10002951,101640.0,101610.0,0.2914577]
[1733514960824,0.00123005,101630.0,101610.0,0.2915706]
[1733514961023,0.10125956,101630.0,101610.0,0.2915706]
[1733514961624,0.10125956,101630.0,101610.0,0.02968618]
[1733514961829,0.10125956,101630.0,101610.0,0.2919359]
[1733514962313,0.10125956,101630.0,101610.0,0.0061129]
[1733514962314,0.22792951,101620.0,101610.0,0.0061129]
[1733514962731,0.17792951,101620.0,101610.0,0.0061129]
[1733514962945,0.001,101630.0,101610.0,0.0061129]
[1733514963295,0.1022596,101630.0,101610.0,0.0091129]
[1733514963449,0.1022596,101630.0,101610.0,0.1591129]
[1733514963651,0.10002951,101620.0,101610.0,0.1561129]
[1733514964135,0.10002951,101620.0,101610.0,0.1571129]
[1733514964920,0.10002951,101620.0,101610.0,0.41336262]
[1733514965137,0.10002951,101620.0,101610.0,0.41536262]
[1733514965525,0.10002951,101620.0,101610.0,0.41436262]
[1733514965731,0.10002951,101620.0,101610.0,0.41536262]
[1733514967746,0.00123009,101630.0,101610.0,0.41536262]
[1733514967988,0.10002951,101630.0,101610.0,0.41536262]
[1733514968193,0.10125954,101630.0,101610.0,0.41536262]
[1733514968371,0.10125954,101630.0,101610.0,0.46056262]
[1733514968735,0.10125954,101630.0,101610.0,0.46230202]
[1733514968946,0.10212924,101630.0,101610.0,0.45930202]
[1733514969334,0.10212924,101630.0,101610.0,0.46030202]
[1733514970234,0.08712924,101630.0,101610.0,0.46030202]
[1733514970416,0.08712924,101630.0,101610.0,0.46230202]
[1733514970767,0.08712924,101630.0,101620.0,0.41224972]
[1733514972777,0.16832924,101630.0,101620.0,0.41224972]
[1733514973459,0.17032924,101630.0,101620.0,0.41224972]
[1733514976496,0.08889921,101630.0,101620.0,0.41224972]
[1733514976906,0.08889921,101630.0,101620.0,0.45287327]
[1733514977428,0.08889921,101630.0,101620.0,0.57785165]
[1733514979156,0.09012919,101630.0,101620.0,0.57785165]
[1733514979926,0.21742919,101630.0,101620.0,0.57785165]
[1733514980140,0.16969921,101630.0,101620.0,0.84098521]
[1733514980345,0.1709293,101630.0,101620.0,0.57785165]
[1733514980745,0.1709293,101630.0,101620.0,0.26323651]
[1733514980746,0.2209293,101630.0,101620.0,0.26323651]
[1733514980985,0.0793,101620.0,101610.0,0.26508881]
[1733514981191,0.17932951,101620.0,101610.0,0.26508881]
[1733514981758,0.10002951,101620.0,101610.0,0.26508881]
[1733514981975,0.10002951,101620.0,101610.0,0.3890804]
[1733514982182,0.10002951,101620.0,101610.0,0.5400804]
[1733514982967,0.10002951,101620.0,101610.0,0.5420804]
[1733514983177,0.10002951,101620.0,101610.0,0.1548523]
[1733514983624,0.10002951,101620.0,101610.0,0.19511607]
[1733514984012,0.10002951,101620.0,101610.0,0.69767944]
[1733514984013,0.29920256,101620.0,101610.0,0.69767944]
[1733514984239,0.3992612,101620.0,101610.0,0.0048523]
[1733514984481,0.33111826,101620.0,101610.0,0.0048523]
[1733514984692,0.28111826,101620.0,101610.0,0.0048523]
[1733514985358,0.28111826,101620.0,101610.0,0.0038523]
[1733514985559,0.28111826,101620.0,101610.0,0.0048523]
[1733514985770,0.28711826,101620.0,101610.0,0.0028523]
[1733514986223,0.29611826,101620.0,101610.0,0.0028523]
[1733514986868,0.33701815,101620.0,101610.0,0.0028523]
[1733514987300,0.3522,101610.0,101600.0,0.001737]
[1733514987496,0.45222951,101610.0,101600.0,0.001737]
[1733514987968,0.35222951,101610.0,101600.0,0.001737]
[1733514988708,0.28422951,101610.0,101600.0,0.001737]
[1733514988915,0.18732951,101610.0,101600.0,0.001737]
[1733514989116,0.10502951,101610.0,101600.0,0.001737]
[1733514989322,0.11302951,101610.0,101600.0,0.001737]
[1733514989528,0.11302951,101610.0,101600.0,0.26532061]
[1733514989822,0.11302951,101610.0,101600.0,0.41532061]
[1733514990030,0.0008697,101630.0,101610.0,0.15]
[1733514990234,0.10002951,101620.0,101610.0,0.15]
[1733514992126,0.10302951,101620.0,101610.0,0.15]
[1733514992348,0.10902951,101620.0,101610.0,0.151]
[1733514993623,0.26864245,101620.0,101610.0,0.001]
[1733514993833,0.2469312,101620.0,101610.0,0.001]
[1733514994712,0.23581826,101620.0,101610.0,0.001]
[1733514994918,0.23281826,101620.0,101610.0,0.001]
[1733514995123,0.23881826,101620.0,101610.0,0.001]
[1733514995347,0.23281826,101620.0,101610.0,0.001]
[1733514995590,0.24181826,101620.0,101610.0,0.001]
[1733514995796,0.27080706,101620.0,101610.0,0.001]
[1733514997563,0.31810706,101620.0,101610.0,0.001]
[1733514998250,0.32818782,101620.0,101610.0,0.001]
[1733515003239,0.29989907,101620.0,101610.0,0.0027394]
[1733515003591,0.30076877,101620.0,101610.0,0.0027394]
[1733515004487,0.32905752,101620.0,101610.0,0.0027394]
[1733515005054,0.30076877,101620.0,101610.0,0.0027394]
[1733515007980,0.35076877,101620.0,101610.0,0.0027394]
[1733515008406,0.23046877,101620.0,101610.0,0.0027394]
[1733515008703,0.29139921,101620.0,101610.0,0.0027394]
[1733515009860,0.18239921,101620.0,101610.0,0.0027394]
[1733515010096,0.11489921,101620.0,101610.0,0.0027394]
[1733515010454,0.18959921,101620.0,101610.0,0.0017394]
[1733515010663,0.2424297,101620.0,101610.0,0.0017394]
[1733515010870,0.24119921,101620.0,101610.0,0.0017394]
[1733515011300,0.26019921,101620.0,101610.0,0.0017394]
[1733515011481,0.26319921,101620.0,101610.0,0.0017394]
[1733515011673,0.25519921,101620.0,101610.0,0.0017394]
[1733515011968,0.26119921,101620.0,101610.0,0.0017394]
[1733515012173,0.25819921,101620.0,101610.0,0.0017394]
[1733515012381,0.29726748,101620.0,101610.0,0.0027394]
[1733515012602,0.30626748,101620.0,101610.0,0.0027394]
[1733515013465,0.3369812,101620.0,101610.0,0.0027394]
[1733515014112,0.45626748,101620.0,101610.0,0.0027394]
[1733515016294,0.30626748,101620.0,101610.0,0.0027394]
[1733515023767,0.40626748,101620.0,101610.0,0.0027394]
[1733515023945,0.30866748,101620.0,101610.0,0.0027394]
[1733515024148,0.35866748,101620.0,101610.0,0.0027394]
[1733515024777,0.30616748,101620.0,101610.0,0.0027394]
[1733515025898,0.45616748,101620.0,101610.0,0.0027394]
[1733515030347,0.30616748,101620.0,101610.0,0.0027394]
[1733515031749,0.35616748,101620.0,101610.0,0.0027394]
[1733515031968,0.33566748,101620.0,101610.0,0.0027394]
[1733515032162,0.28566748,101620.0,101610.0,0.0027394]
[1733515032687,0.19659921,101620.0,101580.0,0.30016275]
[1733515032922,0.00123039,101610.0,101580.0,0.30016275]
[1733515033180,0.10002951,101600.0,101580.0,0.30016275]
[1733515033785,0.023,101590.0,101580.0,0.30016275]
[1733515034450,0.12425988,101590.0,101580.0,0.30016275]
[1733515034656,0.40125988,101590.0,101580.0,0.0017396]
[1733515034866,0.25002951,101590.0,101580.0,0.0017396]
[1733515035079,0.30002951,101590.0,101580.0,0.0017396]
[1733515035297,0.30202951,101590.0,101580.0,0.0017396]
[1733515035925,0.31002951,101590.0,101580.0,0.0017396]
[1733515036935,0.26002951,101590.0,101580.0,0.0017396]
[1733515037887,0.26402951,101590.0,101580.0,0.0017396]
[1733515038324,0.31402951,101590.0,101580.0,0.0017396]
[1733515038733,0.26402951,101590.0,101580.0,0.0017396]
[1733515039172,0.30365186,101590.0,101580.0,0.0017396]
[1733515042041,0.13702951,101590.0,101580.0,0.0017396]
[1733515042267,0.13826012,101590.0,101580.0,0.0017396]
[1733515042691,0.13826012,101590.0,101580.0,0.26581169]
[1733515049620,0.13826012,101590.0,101570.0,0.04940337]
[1733515049821,0.12426011,101580.0,101570.0,0.04940337]
[1733515051373,0.0008698,101590.0,101570.0,0.1698394]
[1733515051576,0.0092378,101610.0,101580.0,0.2219]
[1733515051787,0.10002951,101600.0,101580.0,0.2219]
[1733515052407,0.06065951,101600.0,101580.0,0.2219]
[1733515053257,0.06065951,101600.0,101580.0,0.151]
[1733515053497,0.023,101590.0,101580.0,0.001]
[1733515053740,0.12302951,101590.0,101570.0,0.2387394]
[1733515053978,0.01599835,101580.0,101570.0,0.2219]
[1733515054402,0.11602786,101580.0,101570.0,0.2219]
[1733515054814,0.11602786,101580.0,101570.0,0.15]
[1733515055243,0.11602786,101580.0,101570.0,0.153]
[1733515055666,0.11602786,101580.0,101570.0,0.4171974]
[1733515056633,0.11602786,101580.0,101570.0,0.4181974]
[1733515059729,0.11602786,101580.0,101570.0,0.41823871]
[1733515061615,0.11602786,101580.0,101570.0,0.54391894]
[1733515062048,0.11602786,101580.0,101570.0,0.54565854]
[1733515063339,0.11602786,101580.0,101570.0,0.1557396]
[1733515063520,0.11602786,101580.0,101570.0,0.54560256]
[1733515063934,0.11602786,101580.0,101570.0,0.2640181]
[1733515064567,0.11602786,101580.0,101570.0,0.26396431]
[1733515070328,0.1238698,101600.0,101570.0,0.26396431]
[1733515070531,0.10089931,101600.0,101580.0,0.3368357]
[1733515070953,0.10089931,101600.0,101580.0,0.33585138]
[1733515071616,0.10089931,101600.0,101590.0,0.26395138]
[1733515071833,0.10289931,101600.0,101590.0,0.26395138]
[1733515072501,0.12589931,101600.0,101590.0,0.26395138]
[1733515072676,0.12389931,101600.0,101590.0,0.26395138]
[1733515072876,0.10089931,101600.0,101590.0,0.26395138]
[1733515073357,0.10389931,101600.0,101580.0,0.33585138]
[1733515074006,0.10989931,101600.0,101590.0,0.26395138]
[1733515074217,0.25939931,101600.0,101590.0,0.26395138]
[1733515074436,0.33155371,101600.0,101590.0,0.26395138]
[1733515074674,0.30539931,101600.0,101590.0,0.26395138]
[1733515074887,0.1025,101590.0,101580.0,0.26395138]
[1733515075109,0.20252951,101590.0,101580.0,0.26395138]
[1733515075458,0.20252951,101590.0,101570.0,0.68925417]
[1733515075646,0.10002951,101580.0,101570.0,0.68925417]
[1733515075850,0.16862951,101580.0,101570.0,0.68925417]
[1733515076302,0.16862951,101580.0,101570.0,0.29955015]
[1733515076660,0.16862951,101580.0,101570.0,0.30055015]
[1733515077297,0.16862951,101580.0,101570.0,0.29955015]
[1733515077462,0.16862951,101580.0,101570.0,0.29706028]
[1733515078093,0.16862951,101580.0,101570.0,0.30006028]
[1733515078711,0.16862951,101580.0,101570.0,0.30106028]
[1733515078924,0.16862951,101580.0,101570.0,0.29806028]
[1733515079125,0.16862951,101580.0,101570.0,0.30006028]
[1733515079548,0.16962951,101580.0,101570.0,0.30006028]
[1733515080420,0.16962951,101580.0,101570.0,0.29706028]
[1733515080612,0.17162951,101580.0,101570.0,0.29706028]
[1733515081069,0.17162951,101580.0,101570.0,0.26395138]
[1733515081249,0.24662951,101580.0,101570.0,0.26395138]
[1733515084077,0.24662951,101580.0,101570.0,0.51395138]
[1733515084316,0.24662951,101580.0,101570.0,0.25]
[1733515084476,0.22362951,101580.0,101570.0,0.25]
[1733515084908,0.24662951,101580.0,101570.0,0.25]
[1733515085256,0.24662951,101580.0,101570.0,0.2496]
[1733515085797,0.29662951,101580.0,101570.0,0.2496]
[1733515086908,0.24662951,101580.0,101570.0,0.2496]
[1733515087119,0.24662951,101580.0,101570.0,0.25134]
[1733515087353,0.24749951,101580.0,101570.0,0.25134]
[1733515087985,0.29749951,101580.0,101570.0,0.25134]
[1733515088434,0.44749951,101580.0,101570.0,0.25134]
[1733515089115,0.44649951,101580.0,101570.0,0.25134]
[1733515089521,0.44749951,101580.0,101570.0,0.25134]
[1733515089674,0.45249951,101580.0,101570.0,0.25134]
[1733515091347,0.48712516,101580.0,101570.0,0.25134]
[1733515091560,0.62580367,101580.0,101570.0,0.25134]
[1733515091845,0.62580367,101580.0,101570.0,0.12324]
[1733515092055,0.62580367,101580.0,101570.0,0.07324]
[1733515092248,0.65683336,101580.0,101570.0,0.07324]
[1733515092461,0.7566487,101580.0,101570.0,0.07324]
[1733515092667,0.196908,101570.0,101560.0,0.0017374]
[1733515092820,0.62705267,101570.0,101560.0,0.0017374]
[1733515094018,0.63605267,101570.0,101560.0,0.0017374]
[1733515094870,0.64305267,101570.0,101560.0,0.0017374]
[1733515095903,0.346927,101560.0,101550.0,0.0017402]
[1733515096121,0.62627167,101560.0,101550.0,0.0017402]
[1733515096345,0.67168889,101560.0,101550.0,0.0017402]
[1733515097239,0.67768889,101560.0,101550.0,0.0017402]
[1733515097404,0.073,101520.0,101510.0,0.0017404]
[1733515097627,0.17302951,101520.0,101510.0,0.0017404]
[1733515100018,0.18002951,101520.0,101510.0,0.0017404]
[1733515100646,0.18402951,101520.0,101510.0,0.0017404]
[1733515100862,0.33402951,101520.0,101510.0,0.0017404]
[1733515101061,0.40972951,101520.0,101510.0,0.0017404]
[1733515103983,0.43614467,101520.0,101510.0,0.0017404]
[1733515104458,0.47555267,101520.0,101510.0,0.0017404]
[1733515106315,0.52325267,101520.0,101510.0,0.0017404]
[1733515106805,0.55287123,101520.0,101510.0,0.0017404]
[1733515107790,0.20043751,101520.0,101510.0,0.0017404]
[1733515108153,0.11102951,101520.0,101510.0,0.0017404]
[1733515112755,0.16102951,101520.0,101510.0,0.0017404]
[1733515113006,0.32720841,101520.0,101510.0,0.0017404]
[1733515113213,0.32720841,101520.0,101470.0,0.0475382]
[1733515113214,0.05,101500.0,101470.0,0.0475382]
[1733515113388,0.10002951,101490.0,101470.0,0.0475382]
[1733515114175,0.10002951,101490.0,101470.0,0.03080354]
[1733515114381,0.10002951,101490.0,101470.0,0.03280354]
[1733515114544,0.10102951,101490.0,101470.0,0.03280354]
[1733515114744,0.10102951,101490.0,101470.0,0.03080354]
[1733515115352,0.10102951,101490.0,101470.0,0.0017382]
[1733515115603,0.15102951,101490.0,101470.0,0.0017382]
[1733515116461,0.15002951,101490.0,101470.0,0.0037382]
[1733515116868,0.15002951,101490.0,101470.0,0.0017382]
[1733515116999,0.15002951,101490.0,101470.0,0.0037382]
[1733515118435,0.15002951,101490.0,101470.0,0.0795382]
[1733515120122,0.16503246,101490.0,101470.0,0.0795382]
[1733515120358,0.15002951,101490.0,101470.0,0.0795382]
[1733515121488,0.15002951,101490.0,101470.0,0.0037382]
[1733515122948,0.10002951,101490.0,101470.0,0.0795382]
[1733515123113,0.10002951,101490.0,101470.0,0.0945382]
[1733515127266,0.10002951,101490.0,101450.0,0.0666602]
[1733515127390,0.10002951,101490.0,101450.0,0.06764569]
[1733515129326,0.10102951,101490.0,101450.0,0.21764569]
[1733515129722,0.10202951,101490.0,101450.0,0.21764569]
[1733515129954,0.10002951,101480.0,101460.0,0.12758549]
[1733515131306,0.10102951,101480.0,101460.0,0.12758549]
[1733515132085,0.10102951,101480.0,101460.0,0.12858549]
[1733515134682,0.10102951,101480.0,101460.0,0.39215535]
[1733515136088,0.10102951,101480.0,101460.0,0.39116986]
[1733515137294,0.10102951,101480.0,101460.0,0.39186639]
[1733515138674,0.10102951,101480.0,101470.0,0.26458365]
[1733515138878,0.10102951,101480.0,101470.0,0.41458365]
[1733515139433,0.10002951,101480.0,101470.0,0.41458365]
[1733515139833,0.10002951,101480.0,101470.0,0.54167429]
[1733515140035,0.10002951,101480.0,101470.0,0.54267429]
[1733515142503,0.10002951,101480.0,101470.0,0.266896]
[1733515144355,0.18132951,101480.0,101470.0,0.266896]
[1733515144568,0.18132951,101480.0,101470.0,0.002]
[1733515151340,0.3016,101450.0,101440.0,0.0017394]
[1733515151723,0.43230245,101450.0,101440.0,0.0017394]
[1733515152373,0.40162951,101450.0,101440.0,0.0017394]
[1733515152553,0.43230245,101450.0,101440.0,0.0027394]
[1733515152791,0.43230245,101450.0,101440.0,0.0017394]
[1733515153210,0.44130245,101450.0,101440.0,0.0017394]
[1733515153387,0.52251127,101450.0,101440.0,0.0017394]
[1733515153819,0.63844345,101450.0,101440.0,0.0017394]